bitfinex-derivatives/quotes_ETHF0:USTF0_20250212
["timestamp","ask_amount","ask_price","bid_price","bid_amount"]
[1739401036866,3.2078,2741.7,2741.3,0.72946]
[1739401037071,3.2078,2741.7,2741.4,0.72944]
[1739401037267,3.2078,2741.7,2741.0,3.2078]
[1739401037664,3.2078,2741.7,2741.0,3.46735505]
[1739401037977,0.00546996,2741.8,2741.0,3.2078]
[1739401037978,3.2078,2741.4,2741.0,3.2078]
[1739401038276,3.2078,2741.1,2740.1,0.17849651]
[1739401038469,0.01266639,2740.6,2740.1,0.17849651]
[1739401038671,3.2078,2740.8,2740.7,0.72963]
[1739401038868,3.2078,2741.1,2741.0,0.72955]
[1739401039178,3.2078,2741.1,2740.0,2.634]
[1739401039179,3.2078,2741.1,2740.1,0.18061214]
[1739401039367,3.2078,2741.1,2740.1,3.38841214]
[1739401039571,3.2078,2741.1,2741.0,0.72955]
[1739401040572,3.2078,2741.1,2740.1,2.00508214]
[1739401040772,3.2078,2741.1,2740.2,3.2078]
[1739401041172,3.2078,2741.1,2740.2,2.635]
[1739401041476,3.2078,2741.1,2740.3,3.2078]
[1739401041669,3.2078,2741.1,2741.0,0.72955]
[1739401041867,0.00546996,2741.3,2740.6,3.2078]
[1739401042173,0.00546996,2741.3,2741.2,0.7295]
[1739401044765,3.2078,2742.0,2741.2,3.2078]
[1739401044967,3.2078,2742.0,2741.9,0.72931]
[1739401045168,3.2078,2742.3,2742.2,0.72923]
[1739401045567,0.93768481,2742.3,2742.2,0.72923]
[1739401045767,0.93768481,2742.3,2741.6,3.2078]
[1739401045768,2.3484,2742.7,2741.5,1.82354]
[1739401045972,2.3484,2742.7,2742.6,0.72913]
[1739401046275,0.00546996,2742.4,2742.0,0.00546996]
[1739401046573,3.2078,2742.2,2742.0,0.00546996]
[1739401047375,3.2078,2742.2,2742.1,0.72926]
[1739401047578,3.2078,2742.2,2742.0,0.00546996]
[1739401048374,3.93704,2742.2,2742.0,0.00546996]
[1739401048678,3.2078,2742.2,2742.0,0.00546996]
[1739401048875,3.2078,2742.2,2742.1,0.72926]
[1739401049267,0.00546996,2742.4,2742.3,0.72921]
[1739401050079,9.96e-06,2742.4,2742.3,0.72921]
[1739401054079,9.96e-06,2742.4,2742.1,0.00281163]
[1739401054584,9.96e-06,2742.4,2742.3,0.72921]
[1739401056085,2.634,2742.9,2742.3,3.2078]
[1739401056384,3.2078,2743.1,2743.0,0.72902]
[1739401056575,3.2078,2743.4,2743.3,0.72894]
[1739401057684,0.00546996,2743.6,2743.5,0.72889]
[1739401062081,9.96e-06,2743.6,2743.5,0.72889]
[1739401062481,4.29018859,2744.9,2744.6,0.72857]
[1739401062482,3.2078,2744.7,2744.6,0.72857]
[1739401062894,3.2078,2745.0,2744.9,0.72851]
[1739401063390,3.2078,2745.0,2744.8,0.72854]
[1739401063690,3.2078,2745.0,2744.7,0.00546996]
[1739401063890,3.2078,2745.0,2744.8,0.72853]
[1739401064092,3.2078,2745.0,2744.7,0.00546996]
[1739401064292,3.2078,2745.0,2744.7,0.73401996]
[1739401064684,3.2078,2745.0,2744.7,0.00546996]
[1739401064885,0.72854,2744.8,2744.7,0.00546996]
[1739401066086,3.2078,2745.0,2744.8,0.72853]
[1739401066691,3.2078,2745.0,2744.9,0.72851]
[1739401067085,3.2078,2745.0,2744.7,0.00546996]
[1739401067288,3.2078,2745.0,2744.9,0.72851]
[1739401067483,3.2078,2745.0,2744.7,0.00546996]
[1739401067690,3.2078,2745.0,2744.9,0.72851]
[1739401067893,3.2078,2745.0,2744.8,0.72853]
[1739401068092,3.2078,2745.0,2744.7,0.00546996]
[1739401068287,0.72854,2744.8,2744.7,0.00546996]
[1739401068792,6.72854,2744.8,2744.7,0.00546996]
[1739401069486,10.29018859,2744.8,2743.3,3.2078]
[1739401069688,3.2078,2744.1,2743.3,3.2078]
[1739401069896,3.2078,2744.1,2743.9,0.72876]
[1739401070283,3.2078,2744.1,2743.4,1.82229]
[1739401070482,3.2078,2744.1,2744.0,0.72875]
[1739401070895,2.631,2744.4,2744.0,0.72875]
[1739401071086,3.2078,2744.5,2744.4,0.72865]
[1739401073500,3.2078,2744.8,2744.7,0.72857]
[1739401073697,3.93635,2744.8,2744.2,1.82173]
[1739401073892,0.72857,2744.7,2744.5,0.72861]
[1739401074288,3.93635,2744.8,2744.5,0.72861]
[1739401074495,3.2078,2744.8,2744.1,3.2078]
[1739401074692,3.2078,2744.4,2743.7,5.02988]
[1739401075199,3.2078,2744.4,2743.7,3.2078]
[1739401075394,3.2078,2744.4,2743.8,1.82199]
[1739401075601,3.2078,2744.4,2744.3,0.72867]
[1739401076490,3.2078,2744.4,2744.2,0.72869]
[1739401076710,0.72868,2744.3,2744.0,0.72874]
[1739401076998,3.2078,2744.4,2744.2,0.7287]
[1739401077799,3.2078,2744.4,2743.7,5.02986]
[1739401077800,3.2078,2744.4,2744.3,0.72867]
[1739401078307,3.2078,2744.4,2743.7,5.02986]
[1739401078496,3.2078,2744.4,2743.8,1.82202]
[1739401078898,3.2078,2744.4,2744.3,0.72867]
[1739401079497,3.2078,2744.4,2744.2,0.72868]
[1739401079701,3.2078,2744.4,2743.7,3.2078]
[1739401079702,0.72867,2744.3,2743.7,3.2078]
[1739401079899,0.72867,2744.3,2744.0,0.72873]
[1739401080205,3.2078,2744.4,2744.0,0.72875]
[1739401080407,3.2078,2744.4,2744.2,0.72869]
[1739401080720,3.2078,2744.4,2743.8,1.82202]
[1739401080913,3.2078,2744.4,2744.2,0.72869]
[1739401081506,3.2078,2744.4,2744.3,0.72867]
[1739401083005,3.2078,2744.4,2743.7,3.2078]
[1739401083201,3.93647,2744.4,2744.2,0.72869]
[1739401083404,3.93647,2744.4,2743.8,1.82202]
[1739401083405,3.2078,2744.4,2743.8,1.82202]
[1739401083706,6.56447,2744.4,2744.2,0.7287]
[1739401083900,5.8358,2744.4,2743.8,1.82202]
[1739401084096,5.8358,2744.4,2743.9,1.82193]
[1739401084303,5.8358,2744.4,2743.8,1.82202]
[1739401084504,6.56445,2744.4,2744.2,0.72868]
[1739401085002,5.8358,2744.4,2744.3,0.72867]
[1739401086707,5.8358,2744.4,2743.8,1.82202]
[1739401087013,6.56447,2744.4,2744.2,0.72869]
[1739401087205,0.72867,2744.3,2744.2,0.72869]
[1739401087610,6.56447,2744.4,2744.2,0.72869]
[1739401088106,5.8358,2744.4,2744.3,0.72867]
[1739401088302,6.56446,2744.4,2744.2,0.72868]
[1739401088700,5.8358,2744.4,2743.7,3.2078]
[1739401089006,3.2078,2744.1,2744.0,0.72875]
[1739401090408,3.93653,2744.1,2743.7,3.2078]
[1739401090615,3.93653,2744.1,2743.9,0.72877]
[1739401091215,3.93653,2744.1,2743.8,0.7288]
[1739401091411,3.93653,2744.1,2743.9,0.72877]
[1739401092909,3.2078,2744.1,2743.9,0.72876]
[1739401093212,3.2078,2744.1,2743.6,1.82216]
[1739401093413,3.93653,2744.1,2743.9,0.72877]
[1739401094207,3.2078,2744.1,2744.0,0.72875]
[1739401094615,3.75759668,2744.1,2744.0,0.72875]
[1739401095111,3.2078,2744.1,2743.5,1.82766996]
[1739401095316,3.93655,2744.1,2743.5,1.82766996]
[1739401095510,3.93655,2744.1,2743.9,0.72878]
[1739401096303,3.2078,2744.1,2743.5,1.82766996]
[1739401096509,3.93655,2744.1,2743.9,0.72877]
[1739401096708,3.93654,2744.1,2743.9,0.72877]
[1739401097219,7.13541261,2744.1,2743.5,0.00546996]
[1739401097519,3.2078,2743.8,2743.6,0.72884]
[1739401098219,3.2078,2743.8,2743.5,0.00546996]
[1739401098415,3.2078,2743.8,2743.7,0.72883]
[1739401100719,3.2078,2743.8,2743.5,0.00546996]
[1739401100921,3.93661,2743.8,2743.6,0.72884]
[1739401101217,3.2078,2743.8,2743.6,0.72885]
[1739401101406,3.2078,2743.8,2743.6,0.72884]
[1739401101607,3.2078,2743.8,2743.7,0.72883]
[1739401101813,3.2078,2743.8,2743.5,0.00546996]
[1739401102019,3.93661,2743.8,2743.6,0.72884]
[1739401102223,3.2078,2743.8,2743.7,0.72883]
[1739401107313,0.54979668,2743.9,2743.8,0.72881]
[1739401107716,3.2078,2744.1,2744.0,0.72875]
[1739401109726,0.54979668,2744.2,2744.1,0.72873]
[1739401109919,3.2078,2744.4,2743.7,3.2078]
[1739401110122,3.2078,2744.4,2744.3,0.72867]
[1739401110621,0.54979668,2744.5,2744.4,0.72865]
[1739401110817,3.2078,2744.8,2744.7,0.72857]
[1739401113820,3.2078,2744.8,2744.4,4.19598]
[1739401114025,3.2078,2744.8,2744.7,0.72857]
[1739401114232,3.21326996,2745.2,2744.6,3.2078]
[1739401114421,0.00546996,2745.2,2745.1,0.72846]
[1739401114628,3.93604,2746.0,2745.7,0.72829]
[1739401114826,3.2078,2746.0,2745.1,3.2078]
[1739401115022,3.2078,2746.0,2745.9,0.72825]
[1739401115327,3.2078,2746.0,2745.8,0.72826]
[1739401115623,5.75602672,2746.1,2745.9,0.72822]
[1739401116028,5.75602672,2746.1,2746.0,0.72822]
[1739401116626,0.72824,2746.0,2745.6,0.73378996]
[1739401116822,5.75602672,2746.1,2745.6,0.00546996]
[1739401117020,0.00546996,2746.2,2745.6,0.00546996]
[1739401117322,0.00546996,2746.2,2746.1,0.7282]
[1739401117518,0.00546996,2746.2,2745.7,2.3386]
[1739401117718,0.00546996,2746.2,2746.1,0.7282]
[1739401118219,0.00546996,2746.2,2746.0,0.7282]
[1739401118823,0.00546996,2746.2,2745.7,2.3386]
[1739401119022,0.00546996,2746.2,2746.1,0.7282]
[1739401120125,0.00546996,2746.2,2746.1,0.21486003]
[1739401120321,0.00546996,2746.2,2746.1,0.7282]
[1739401120529,3.2078,2746.6,2745.8,6.34382672]
[1739401120829,3.13602672,2747.1,2747.0,0.72796]
[1739401121129,3.2078,2747.3,2745.9,3.64127]
[1739401121130,3.2078,2747.3,2747.2,0.72791]
[1739401121434,3.13602672,2747.7,2747.5,0.7278]
[1739401121738,3.13602672,2747.7,2747.4,0.72783]
[1739401122718,3.13602672,2747.7,2747.3,0.27995332]
[1739401122923,3.13602672,2747.7,2747.3,0.00545931]
[1739401123224,3.13602672,2747.7,2747.5,0.72783]
[1739401123420,3.13602672,2747.7,2747.6,0.7278]
[1739401123626,3.13602672,2747.7,2747.3,0.00545931]
[1739401123627,0.00545931,2747.9,2747.8,0.72775]
[1739401123925,3.2078,2748.5,2747.8,3.2078]
[1739401124723,3.93536,2748.5,2748.0,0.72768]
[1739401124927,0.00545931,2748.4,2747.8,3.2078]
[1739401125120,0.00545931,2748.4,2747.3,0.27612998]
[1739401125121,3.92375216,2748.4,2747.3,0.27612998]
[1739401125324,3.2078,2748.2,2747.5,3.2078]
[1739401125529,3.91829285,2748.0,2747.3,0.00545931]
[1739401125721,0.7278,2747.6,2747.3,0.00545931]
[1739401126030,0.72785,2747.4,2747.3,0.00545931]
[1739401126428,3.2078,2747.4,2746.3,5.572]
[1739401126733,3.2078,2747.4,2747.0,0.72794]
[1739401126734,2.615,2747.4,2747.0,0.72794]
[1739401126935,2.615,2747.4,2746.8,3.2078]
[1739401127126,3.34288,2747.4,2746.9,0.72798]
[1739401127423,2.615,2747.4,2746.9,0.72797]
[1739401127629,3.34287,2747.4,2746.9,0.73343931]
[1739401128030,2.615,2747.4,2746.9,0.00545931]
[1739401128237,2.615,2747.4,2747.2,0.72789]
[1739401128533,2.615,2747.4,2747.1,0.72793]
[1739401128737,3.2078,2748.1,2747.3,3.2078]
[1739401129030,0.00545931,2748.4,2748.3,0.72761]
[1739401129031,3.21325931,2748.4,2748.3,0.72761]
[1739401129240,3.93513,2749.4,2748.9,0.72745]
[1739401129533,3.2078,2749.4,2748.6,3.2078]
[1739401129724,3.2078,2749.4,2749.2,0.72735]
[1739401129926,3.2078,2749.4,2748.7,2.192]
[1739401130228,3.2078,2749.4,2749.1,0.72739]
[1739401130423,0.00545931,2749.3,2748.8,0.00545931]
[1739401130627,0.00545931,2749.3,2749.2,0.72737]
[1739401131429,0.00545931,2749.3,2749.0,3.2078]
[1739401131430,3.91829285,2750.4,2749.7,0.72722]
[1739401131733,3.91829285,2750.4,2749.7,0.72723]
[1739401132036,3.2078,2750.2,2749.7,0.72723]
[1739401132333,3.2078,2750.2,2749.6,3.2078]
[1739401132528,0.00359694,2750.2,2750.1,0.72712]
[1739401132924,3.22672831,2750.9,2749.9,3.2078]
[1739401133228,3.2078,2751.2,2750.5,3.2078]
[1739401133428,3.2078,2751.2,2750.7,0.72697]
[1739401133732,3.2078,2751.2,2750.5,3.93481]
[1739401134131,3.2078,2751.2,2750.6,0.00545931]
[1739401134430,3.91829285,2750.8,2750.6,0.00545931]
[1739401134734,3.2078,2751.2,2750.6,0.00545931]
[1739401135522,3.2078,2751.2,2750.8,0.72693]
[1739401135840,3.2078,2751.2,2750.9,0.72693]
[1739401136335,3.2078,2751.2,2751.1,0.72687]
[1739401136530,3.2078,2751.2,2750.6,3.21325931]
[1739401136742,3.2078,2751.2,2750.9,0.72691]
[1739401137433,3.2078,2751.2,2750.8,0.72694]
[1739401137737,0.72695,2750.9,2750.6,3.21325931]
[1739401137937,0.72691,2751.0,2750.6,0.00545931]
[1739401138434,3.33689,2751.1,2750.6,0.00545931]
[1739401138630,0.72693,2750.9,2750.6,0.00545931]
[1739401138840,3.2078,2751.8,2750.8,7.12609285]
[1739401139035,3.2078,2751.8,2751.1,3.2078]
[1739401139533,2.3208,2752.1,2751.1,3.2078]
[1739401139733,2.3208,2752.1,2751.4,3.2078]
[1739401140034,2.3208,2752.1,2751.8,0.72668]
[1739401140230,2.3208,2752.1,2751.4,3.2078]
[1739401140430,2.3208,2752.1,2751.7,0.7267]
[1739401140737,6.54237,2752.3,2751.8,0.72668]
[1739401140738,3.2078,2752.3,2751.8,0.72668]
[1739401140938,3.93436,2752.3,2751.8,0.72668]
[1739401141236,3.2078,2752.3,2751.4,3.2078]
[1739401141443,3.2078,2752.8,2751.7,3.2078]
[1739401141639,3.2078,2752.8,2752.4,0.72651]
[1739401141929,3.2078,2752.8,2752.2,3.2078]
[1739401142135,3.2078,2752.8,2752.4,0.72651]
[1739401142534,0.72648,2752.7,2752.3,0.00545931]
[1739401142732,0.72652,2752.5,2752.3,0.00545931]
[1739401142926,0.7265,2752.6,2752.3,0.00545931]
[1739401143333,3.93433,2752.4,2752.3,0.00545931]
[1739401143826,3.93433,2752.4,2751.7,0.7267]
[1739401143827,0.72658,2752.2,2751.7,0.7267]
[1739401144035,3.2078,2752.4,2751.3,3.2078]
[1739401144231,3.93434,2752.4,2751.9,0.72665]
[1739401144427,3.2078,2752.4,2751.3,3.2078]
[1739401144636,3.2078,2752.4,2751.6,0.72673]
[1739401144839,0.72665,2752.0,2751.5,0.72675]
[1739401145031,0.72668,2751.9,2751.7,0.00544929]
[1739401145233,3.2078,2752.1,2751.7,0.00544929]
[1739401145234,0.72669,2751.8,2751.7,0.00544929]
[1739401145740,6.54049,2751.8,2751.7,0.00544929]
[1739401145940,0.72673,2751.7,2751.3,0.72682]
[1739401146134,5.8138,2751.8,2751.0,5.4797]
[1739401146433,5.8138,2751.8,2751.5,0.72677]
[1739401146739,6.5405,2751.8,2751.4,0.72678]
[1739401147042,5.8138,2751.8,2751.3,0.00544929]
[1739401147637,0.72678,2751.5,2751.3,0.00544929]
[1739401148034,3.93458,2751.5,2751.3,0.00544929]
[1739401148334,3.2078,2751.5,2751.3,0.00544929]
[1739401148537,0.72679,2751.4,2751.3,0.00544929]
[1739401149944,3.93459,2751.4,2751.3,0.00544929]
[1739401150141,9.2078,2751.4,2750.4,2.3386]
[1739401150339,9.2078,2751.4,2749.9,1.81794]
[1739401150340,3.2078,2751.1,2749.9,1.81794]
[1739401150547,0.727,2750.7,2750.3,0.72707]
[1739401150753,3.2078,2750.8,2749.9,5.02574]
[1739401150945,0.72702,2750.6,2750.2,0.72709]
[1739401151141,3.2078,2750.8,2749.9,3.2078]
[1739401151346,0.72707,2750.4,2750.1,0.00544929]
[1739401151653,0.7271,2750.3,2750.1,0.00544929]
[1739401151862,3.21324929,2750.7,2750.1,0.00544929]
[1739401152265,3.9349,2750.3,2750.1,0.00544929]
[1739401152565,0.72711,2750.2,2750.1,0.00544929]
[1739401152751,3.33011,2750.2,2750.1,0.00544929]
[1739401154562,2.603,2750.2,2750.1,0.00544929]
[1739401155567,2.603,2750.2,2750.1,0.73258929]
[1739401156360,3.2078,2750.3,2750.1,0.73258929]
[1739401156562,3.21324929,2750.7,2750.1,0.00544929]
[1739401156768,3.21324929,2750.7,2750.4,0.72705]
[1739401157061,3.21324929,2750.7,2750.1,0.00544929]
[1739401157062,0.72701,2750.6,2750.2,0.7271]
[1739401157264,0.72703,2750.6,2750.1,0.73256929]
[1739401157566,3.94023929,2750.7,2750.2,0.72711]
[1739401157861,3.21324929,2750.7,2750.3,0.72708]
[1739401158068,3.21324929,2750.7,2750.4,0.72705]
[1739401158069,3.94022929,2750.7,2750.4,0.72705]
[1739401158265,3.21324929,2750.7,2750.1,0.00544929]
[1739401158465,0.72702,2750.6,2750.2,0.72711]
[1739401158967,3.21324929,2750.7,2750.1,0.00544929]
[1739401159271,0.72711,2750.2,2750.1,0.00544929]
[1739401160068,3.32811,2750.2,2750.1,0.00544929]
[1739401161070,3.32811,2750.2,2748.0,2.3968]
[1739401161071,1.81823,2749.6,2748.0,2.3968]
[1739401161271,3.2078,2749.3,2748.0,4.91820539]
[1739401161474,0.72748,2748.9,2748.0,4.91820539]
[1739401161671,3.74049678,2749.3,2748.0,4.91820539]
[1739401161871,0.72749,2748.8,2748.3,0.7276]
[1739401162172,2.601,2748.8,2748.4,0.00544929]
[1739401162373,3.2078,2748.7,2748.4,0.00544929]
[1739401163070,0.72756,2748.5,2748.4,0.00544929]
[1739401163273,3.2078,2748.7,2748.4,0.00544929]
[1739401163470,0.72756,2748.5,2748.4,0.00544929]
[1739401163674,9.2078,2748.7,2747.5,3.47229435]
[1739401163969,3.2078,2748.2,2747.5,3.2078]
[1739401164176,2.601,2748.4,2747.5,3.2078]
[1739401164761,3.3286,2748.4,2747.7,0.00544929]
[1739401164972,2.601,2748.4,2747.7,0.00544929]
[1739401165174,0.72763,2748.3,2747.7,0.00544929]
[1739401165363,3.2078,2748.2,2747.7,0.00544929]
[1739401166069,5.8088,2748.2,2747.7,0.00544929]
[1739401166268,6.53646,2748.2,2747.7,0.00544929]
[1739401167075,0.72767,2748.1,2747.7,0.00544929]
[1739401167570,5.8088,2748.2,2747.7,0.00544929]
[1739401167873,3.2078,2747.8,2747.7,0.00544929]
[1739401169076,3.2078,2747.8,2746.6,3.2078]
[1739401169778,3.2078,2747.5,2746.6,3.48159589]
[1739401169980,3.93564,2747.5,2747.0,0.72795]
[1739401170477,0.00545961,2747.3,2747.1,0.72793]
[1739401170678,0.00545961,2747.3,2747.2,0.72791]
[1739401170980,0.00545961,2747.3,2746.9,3.2078]
[1739401171180,0.00545961,2747.3,2747.2,0.72791]
[1739401172171,0.00545961,2747.3,2746.9,5.02775]
[1739401172172,0.00545961,2747.3,2746.9,3.2078]
[1739401172375,0.00545961,2747.3,2747.1,0.72793]
[1739401172575,0.00545961,2747.3,2747.0,0.72794]
[1739401172868,0.00545961,2747.3,2747.2,0.72791]
[1739401174176,0.00545961,2747.3,2747.2,3.93571]
[1739401174378,4.18365,2748.6,2747.2,3.93571]
[1739401174379,3.2078,2748.1,2747.2,9.2078]
[1739401174677,3.2078,2748.8,2747.9,3.2078]
[1739401174983,3.2078,2748.8,2748.6,0.72752]
[1739401175181,2.599,2749.2,2748.4,3.2078]
[1739401175480,0.00545961,2749.1,2749.0,0.72742]
[1739401175878,0.00545961,2749.1,2748.8,3.2078]
[1739401176084,0.00545961,2749.1,2749.0,0.72743]
[1739401176876,0.00545961,2749.1,2749.0,1.005067]
[1739401177177,2.599,2749.8,2749.5,0.72728]
[1739401177378,3.32622,2749.8,2749.5,0.72728]
[1739401177584,3.2078,2750.0,2749.2,3.2078]
[1739401178274,0.00545961,2749.9,2749.2,3.2078]
[1739401178482,0.72724,2749.8,2749.2,3.2078]
[1739401178671,0.00545961,2749.9,2749.2,3.93516]
[1739401178873,0.00545961,2749.9,2749.2,3.2078]
[1739401179276,0.72725,2749.7,2749.2,3.2078]
[1739401179478,0.72728,2749.6,2749.1,0.72739]
[1739401179679,3.2078,2749.7,2749.0,2.2919]
[1739401179881,3.93505,2749.7,2749.0,2.2919]
[1739401180081,0.72727,2749.6,2749.1,0.72739]
[1739401180285,3.93505,2749.7,2749.0,2.2919]
[1739401180579,0.72729,2749.6,2749.0,2.2919]
[1739401180784,0.72727,2749.6,2749.0,3.01931]
[1739401181079,0.72737,2749.3,2748.7,3.2078]
[1739401181284,0.72738,2749.2,2748.7,3.93529]
[1739401181780,0.72736,2749.3,2748.7,3.2078]
[1739401181975,0.72736,2749.3,2748.7,0.7275]
[1739401182478,5.8038,2749.4,2748.5,0.00545961]
[1739401182479,0.72744,2749.0,2748.5,0.00545961]
[1739401182684,0.72748,2748.9,2748.5,0.00545961]
[1739401183182,3.2078,2749.1,2748.5,0.00545961]
[1739401183384,0.72742,2749.1,2748.6,0.72752]
[1739401183677,5.8038,2749.4,2748.5,3.21325961]
[1739401183885,0.72739,2749.2,2748.5,3.21325961]
[1739401184076,5.8038,2749.4,2748.6,0.72753]
[1739401184384,5.8038,2749.4,2748.5,0.00545961]
[1739401184385,0.72742,2749.1,2748.5,0.00545961]
[1739401184581,5.8038,2749.4,2748.5,3.21325961]
[1739401184779,0.72742,2749.1,2748.6,0.72753]
[1739401184981,0.72741,2749.1,2748.6,0.72753]
[1739401185382,3.2078,2749.2,2748.6,0.72753]
[1739401185583,0.7274,2749.1,2748.6,0.72753]
[1739401185780,0.7274,2749.1,2748.5,3.21325961]
[1739401186087,6.63677,2749.8,2749.5,0.72729]
[1739401186088,2.595,2749.7,2749.5,0.72729]
[1739401186288,2.595,2749.8,2749.4,3.2078]
[1739401186490,0.00545961,2749.9,2749.7,3.2078]
[1739401186785,0.00545961,2749.9,2749.8,0.72722]
[1739401186982,0.72722,2749.8,2749.7,3.2078]
[1739401187177,6.00545961,2749.9,2748.6,3.2078]
[1739401187373,6.00545961,2749.9,2748.5,0.00545961]
[1739401187374,0.72752,2748.7,2748.5,0.00545961]
[1739401187584,2.594,2749.0,2748.5,0.00545961]
[1739401187785,0.72749,2748.8,2748.5,0.00545961]
[1739401187979,2.594,2749.0,2748.5,0.00545961]
[1739401188179,0.72753,2748.6,2748.5,0.00545961]
[1739401188387,3.93533,2748.6,2748.5,0.00545961]
[1739401188785,0.72771,2748.0,2747.5,0.72781]
[1739401188980,0.72767,2748.1,2747.6,0.7278]
[1739401189190,0.72771,2748.0,2747.4,5.35323]
[1739401189384,0.72772,2747.9,2747.4,5.35323]
[1739401189584,0.72776,2747.8,2747.4,4.6254]
[1739401189783,2.594,2748.2,2747.4,4.6254]
[1739401189985,0.00545961,2747.9,2747.4,4.6254]
[1739401190281,0.00545961,2747.9,2747.3,0.00545961]
[1739401190687,0.72779,2747.7,2747.3,0.00545961]
[1739401190888,0.00545961,2747.9,2747.3,0.00545961]
[1739401191092,0.72779,2747.7,2747.3,0.00545961]
[1739401191383,3.21325961,2747.9,2747.3,0.00545961]
[1739401191590,0.72778,2747.7,2747.3,0.00545961]
[1739401191785,0.00545961,2747.9,2747.3,3.21325961]
[1739401191992,0.73319961,2747.9,2747.4,0.72785]
[1739401192197,0.73318961,2747.9,2747.3,3.94111961]
[1739401192694,0.00545961,2747.9,2747.5,0.72783]
[1739401192880,0.00545961,2747.9,2747.6,0.72779]
[1739401193081,2.59845961,2747.9,2747.3,3.21325961]
[1739401193682,0.00545961,2747.9,2747.3,3.21325961]
[1739401194287,0.00545961,2747.9,2747.3,0.00545961]
[1739401194486,0.72779,2747.7,2747.3,0.73333961]
[1739401195096,0.00545961,2747.9,2747.3,0.00545961]
[1739401195294,0.72779,2747.7,2747.3,0.73330961]
[1739401195690,0.00545961,2747.9,2747.3,0.00545961]
[1739401195889,0.72779,2747.7,2747.4,0.72785]
[1739401196090,0.00545961,2747.9,2747.3,0.00545961]
[1739401196592,0.72781,2747.6,2747.3,0.00545961]
[1739401196896,0.72783,2747.5,2747.3,0.73333961]
[1739401197092,0.00545961,2747.9,2747.3,0.00545961]
[1739401197297,0.72785,2747.4,2747.3,0.00545961]
[1739401197894,0.00545961,2747.9,2747.4,0.72784]
[1739401198096,1.82476961,2747.9,2747.3,0.73331961]
[1739401198492,1.81937,2747.8,2747.3,0.00545961]
[1739401198798,0.72785,2747.4,2747.3,0.00545961]
[1739401200389,4.64857678,2747.4,2747.3,9.61e-06]
[1739401201292,3.92072678,2747.8,2747.3,9.61e-06]
[1739401201702,0.00545961,2747.9,2747.6,3.2078]
[1739401201901,3.2078,2748.9,2747.7,4.7277]
[1739401202200,0.5332697,2749.0,2747.9,3.92072678]
[1739401202394,134.594,2753.7,2748.5,1.81891]
[1739401202395,3.2078,2749.8,2748.5,1.81891]
[1739401202697,3.2078,2749.7,2749.1,3.2078]
[1739401202907,3.2078,2750.2,2749.1,7.12852678]
[1739401203104,0.00545961,2749.7,2749.5,0.72728]
[1739401203394,0.00545961,2749.7,2749.5,3.2078]
[1739401203699,3.2078,2750.7,2749.5,13.39733427]
[1739401203906,3.2078,2751.6,2750.5,4.64773678]
[1739401204094,0.72674,2751.7,2750.5,3.92072678]
[1739401204399,3.93447,2751.9,2751.1,3.2078]
[1739401204589,3.92072678,2753.8,2751.7,3.92072678]
[1739401204590,3.2078,2752.7,2751.7,3.92072678]
[1739401204903,3.2078,2752.7,2752.2,3.2078]
[1739401205207,4.20019862,2753.5,2751.3,4.10203959]
[1739401205208,0.27947184,2753.5,2752.6,3.2078]
[1739401205493,0.27947184,2753.5,2753.0,3.2078]
[1739401205698,18.17934193,2753.9,2753.4,3.2078]
[1739401206496,18.18479162,2753.9,2753.4,3.21324969]
[1739401206894,0.00544969,2753.9,2753.4,3.21324969]
[1739401207709,0.00544969,2753.9,2753.4,0.00544969]
[1739401208203,0.00544969,2753.9,2745.5,0.14559656]
[1739401208204,3.2078,2753.5,2752.2,3.2078]
[1739401208401,3.2078,2753.2,2751.8,5.4768]
[1739401208704,2.586,2753.2,2751.8,5.4768]
[1739401208901,3.2078,2753.0,2751.8,2.269]
[1739401209095,7.46287278,2752.7,2751.3,3.2078]
[1739401209298,4.25507278,2752.3,2750.8,2.4197]
[1739401209496,3.2078,2752.1,2750.8,2.4197]
[1739401209702,0.00544969,2751.8,2751.3,0.00544969]
[1739401210198,0.00544969,2751.8,2751.5,0.72677]
[1739401210402,3.2078,2753.3,2751.7,3.2078]
[1739401210599,3.2078,2753.6,2752.7,3.2078]
[1739401211102,4.25507278,2753.9,2753.2,3.2078]
[1739401211303,4.25507278,2754.3,2753.2,3.2078]
[1739401211504,0.00544969,2753.8,2753.7,3.2078]
[1739401211809,3.2078,2754.7,2753.9,0.72612]
[1739401212010,3.93372,2754.7,2754.0,3.2078]
[1739401212212,7.46287278,2755.3,2753.6,3.2078]
[1739401212507,7.46287278,2755.3,2754.5,3.2078]
[1739401212508,0.72585,2755.0,2754.5,3.2078]
[1739401212803,3.2078,2755.1,2754.2,3.2078]
[1739401213012,0.00544969,2755.0,2754.5,3.2078]
[1739401213208,0.72594,2754.7,2753.9,2.584]
[1739401213506,0.00544969,2755.0,2753.5,3.2078]
[1739401213507,3.21324969,2755.0,2753.5,3.2078]
[1739401213703,0.72595,2754.7,2753.6,0.7262]
[1739401213907,3.93375,2754.6,2753.9,3.2078]
[1739401214101,7.46287278,2754.9,2753.9,3.2078]
[1739401214602,4.25507278,2754.9,2754.0,1.4524]
[1739401214808,4.25507278,2754.5,2754.0,1.4524]
[1739401215009,0.72592,2754.8,2754.0,1.4524]
[1739401215312,4.25507278,2754.9,2754.0,3.049]
[1739401215517,0.72608,2754.1,2754.0,2.05075]
[1739401215701,0.72608,2754.1,2753.3,0.00544969]
[1739401215702,2.583,2754.1,2753.3,0.00544969]
[1739401215907,0.72619,2753.7,2753.3,0.00544969]
[1739401216209,2.583,2754.1,2753.3,0.73173969]
[1739401216509,3.2078,2754.7,2754.0,3.93389]
[1739401216704,3.2078,2754.7,2754.0,3.2078]
[1739401216907,3.2078,2754.7,2754.1,0.72606]
[1739401217107,4.25507278,2754.8,2754.0,4.9506]
[1739401217311,0.00544969,2755.0,2754.0,4.9506]